fUSD/lending_fUSD_20240317
["ID","MTS","AMOUNT","RATE_DAILY","PERIOD"]
[319345426,1710685840568,-334.343426,0.00018999,5]
[319345427,1710685840577,-334.343426,0.00018999,5]
[319345428,1710685840587,-334.343426,0.00018999,5]
[319345429,1710685840597,-334.34342598,0.00018999,5]
[319345430,1710685840606,-137597.36968072,0.00018999,2]
[319345431,1710685840624,-4996.0216856,0.00018999,2]
[319345432,1710685840635,-1626.94845449,0.00018999,2]
[319345434,1710685840647,-2926.7940955,0.00018999,2]
[319345435,1710685840659,-1038.11551695,0.00018999,2]
[319345436,1710685840671,-2198.49212684,0.00018999,2]
[319345437,1710685840689,-317.56718006,0.00018999,2]
[319345438,1710685840700,-896.82497611,0.00018999,2]
[319345439,1710685840722,-18539.09904597,0.00018999,2]
[319345440,1710685840738,-961.9483,0.00018999,2]
[319345474,1710685843236,-432.5,0.00018137,2]
[319345475,1710685843246,-66947.5,0.00018999,2]
[319345477,1710685843299,-708.67558432,0.00018999,2]
[319345478,1710685843310,-1487.62096218,0.00018999,2]
[319345479,1710685843322,-511.74477419,0.00018999,2]
[319345480,1710685843333,-5020.48583704,0.00018999,2]
[319345481,1710685843363,-4542.55194562,0.00018999,2]
[319345482,1710685843374,-89999.04465,0.00018999,2]
[319345483,1710685843386,-738.108,0.00018999,2]
[319345484,1710685843398,-12079.49190014,0.00018999,2]
[319345485,1710685843409,-14172.75,0.00018999,2]
[319345486,1710685843425,-60287.00317307,0.00018999,2]
[319345487,1710685843434,-500.0,0.00018999,2]
[319345488,1710685843444,-357.11862345,0.00018999,2]
[319345489,1710685843453,-500.0,0.00018999,2]
[319345490,1710685843462,-179.69468784,0.00018999,2]
[319345491,1710685843472,-500.0,0.00018999,2]
[319345492,1710685843482,-500.0,0.00018999,2]
[319345493,1710685843491,-500.0,0.00018999,2]
[319345494,1710685843500,-500.0,0.00018999,2]
[319345495,1710685843509,-500.0,0.00018999,2]
[319345496,1710685843519,-500.0,0.00018999,2]
[319345497,1710685843528,-500.0,0.00018999,2]
[319345498,1710685843541,-500.0,0.00018999,2]
[319345499,1710685843551,-479.68,0.00018999,2]
[319345500,1710685843561,-500.0,0.00018999,2]
[319345501,1710685843571,-497.76250829,0.00018999,2]
[319345502,1710685843581,-500.0,0.00018999,2]
[319345503,1710685843591,-500.0,0.00018999,2]
[319345504,1710685843600,-500.0,0.00018999,2]
[319345505,1710685843610,-500.0,0.00018999,2]
[319345506,1710685843619,-316.97026686,0.00018999,2]
[319345507,1710685843629,-606.63,0.00018999,2]
[319345508,1710685843639,-500.0,0.00018999,2]
[319345510,1710685843648,-500.0,0.00018999,2]
[319345511,1710685843658,-500.0,0.00018999,2]
[319345512,1710685843668,-500.0,0.00018999,2]
[319345513,1710685843678,-500.0,0.00018999,2]
[319345514,1710685843687,-500.0,0.00018999,2]
[319345515,1710685843696,-500.0,0.00018999,2]
[319345516,1710685843706,-446.18,0.00018999,2]
[319345517,1710685843715,-500.0,0.00018999,2]
[319345519,1710685843724,-516.29850236,0.00018999,2]
[319345520,1710685843734,-500.0,0.00018999,2]
[319345521,1710685843743,-500.0,0.00018999,2]
[319345522,1710685843752,-500.0,0.00018999,2]
[319345523,1710685843763,-500.0,0.00018999,2]
[319345524,1710685843774,-500.0,0.00018999,2]
[319345525,1710685843784,-500.0,0.00018999,2]
[319345526,1710685843794,-500.0,0.00018999,2]
[319345527,1710685843803,-500.0,0.00018999,2]
[319345528,1710685843812,-500.0,0.00018999,2]
[319345529,1710685843821,-500.0,0.00018999,2]
[319345530,1710685843831,-500.0,0.00018999,2]
[319345531,1710685843840,-500.0,0.00018999,2]
[319345532,1710685843851,-500.0,0.00018999,2]
[319345533,1710685843860,-500.0,0.00018999,2]
[319345534,1710685843869,-500.0,0.00018999,2]
[319345535,1710685843879,-500.0,0.00018999,2]
[319345536,1710685843888,-294.8,0.00018999,2]
[319345537,1710685843897,-500.0,0.00018999,2]
[319345538,1710685843906,-500.0,0.00018999,2]
[319345539,1710685843916,-500.0,0.00018999,2]
[319345540,1710685843926,-500.0,0.00018999,2]
[319345541,1710685843935,-182.52,0.00018999,2]
[319345542,1710685843946,-201.23585611,0.00018999,2]
[319345543,1710685843955,-500.0,0.00018999,2]
[319345544,1710685843964,-500.0,0.00018999,2]
[319345545,1710685843973,-500.0,0.00018999,2]
[319345546,1710685843983,-500.0,0.00018999,2]
[319345547,1710685843992,-500.0,0.00018999,2]
[319345548,1710685844001,-500.0,0.00018999,2]
[319345549,1710685844010,-500.0,0.00018999,2]
[319345550,1710685844019,-563.24,0.00018999,2]
[319345551,1710685844029,-500.0,0.00018999,2]
[319345552,1710685844041,-500.0,0.00018999,2]
[319345553,1710685844050,-500.0,0.00018999,2]
[319345554,1710685844060,-500.0,0.00018999,2]
[319345555,1710685844069,-500.0,0.00018999,2]
[319345556,1710685844078,-500.0,0.00018999,2]
[319345557,1710685844090,-500.0,0.00018999,2]
[319345558,1710685844099,-500.0,0.00018999,2]
[319345559,1710685844109,-500.0,0.00018999,2]
[319345560,1710685844118,-500.0,0.00018999,2]
[319345561,1710685844127,-500.0,0.00018999,2]
[319345562,1710685844137,-500.0,0.00018999,2]
[319345563,1710685844146,-500.0,0.00018999,2]
[319345564,1710685844156,-525.46786212,0.00018999,2]
[319345565,1710685844166,-500.0,0.00018999,2]
[319345566,1710685844176,-500.0,0.00018999,2]
[319345567,1710685844186,-500.0,0.00018999,2]
[319345568,1710685844198,-500.0,0.00018999,2]
[319345569,1710685844208,-500.0,0.00018999,2]
[319345570,1710685844217,-500.0,0.00018999,2]
[319345571,1710685844227,-500.0,0.00018999,2]
[319345572,1710685844237,-927820.53897065,0.00019,2]
[319345573,1710685844256,-8873.21686544,0.00019,2]
[319345574,1710685844268,-4962.86644977,0.00019,2]
[319345575,1710685844290,-3181.24157555,0.00019,2]
[319345576,1710685844301,-313.4185825,0.00019,2]
[319345577,1710685846325,-599.27979208,0.00019,2]
[319345578,1710685846337,-18214.41253113,0.00019,2]
[319345579,1710685846417,-2864.936772,0.00019,2]
[319345580,1710685846459,-35937.60305195,0.00019,2]
[319345581,1710685846477,-60661.88803518,0.00019,2]
[319345582,1710685846552,-9387.344542,0.00019,2]
[319345583,1710685846563,-271.96201083,0.00019,2]
[319345585,1710686322193,42000.0,0.0002315,120]
[319345586,1710686500955,-155.0,0.00014977,2]
[319345587,1710686500982,-243.24927813,0.00014977,2]
[319345588,1710686501009,-2973.58421331,0.00014977,2]
[319345589,1710686501035,-547.96077282,0.00014978,2]
[319345590,1710686501061,-158.09190079,0.00014979,2]
[319345591,1710686501088,-617.49788098,0.0001498,2]
[319345592,1710686501115,-1585.53257438,0.00014981,2]
[319345593,1710686501141,-150.0,0.00014991,2]
[319345594,1710686501167,-343.08337959,0.00015,3]
[319345595,1710686572953,-4176.62593463,0.00021824,30]
[319345596,1710686572977,-30838.95,0.00021824,50]
[319345597,1710686573004,-50000.0,0.00021824,120]
[319345598,1710686573028,-30000.0,0.00021824,60]
[319345599,1710686573050,-20000.0,0.00021824,30]
[319345600,1710686573074,-305.46760719,0.00021824,30]
[319345601,1710686573098,-157212.87473779,0.00021824,60]
[319345602,1710686573120,-234084.93091309,0.00021824,30]
[319345603,1710686573144,-90000.0,0.00021824,120]
[319345604,1710686573166,-5000.0,0.00021824,30]
[319345605,1710686573189,-5000.0,0.00021824,30]
[319345606,1710686573211,-15000.0,0.00021824,30]
[319345607,1710686573234,-1670.73,0.00021824,90]
[319345608,1710686573256,-360.83539417,0.00021824,30]
[319345609,1710686573277,-1000.0,0.00021824,30]
[319345610,1710686573299,-16156.03819323,0.00021824,120]
[319345611,1710686573322,-305865.81825647,0.00021824,120]
[319345612,1710686573344,-20500.0,0.00021824,120]
[319345613,1710686573367,-819.06460878,0.00021824,30]
[319345614,1710686573393,-1000.0,0.00021824,30]
[319345615,1710686573419,-1000.0,0.00021824,30]
[319345616,1710686573444,-1000.0,0.00021824,30]
[319345617,1710686573467,-1000.0,0.00021824,30]
[319345618,1710686573493,-1000.0,0.00021824,30]
[319345619,1710686573516,-1000.0,0.00021824,30]
[319345620,1710686573539,-1000.0,0.00021824,30]
[319345621,1710686573563,-221.85833642,0.00021824,30]
[319345622,1710686573587,-1000.0,0.00021824,30]
[319345623,1710686573610,-1000.0,0.00021824,60]
[319345624,1710686573636,-1000.0,0.00021824,60]
[319345625,1710686573659,-6214.00827644,0.00021824,60]
[319345626,1710686573683,-1000.0,0.00021824,30]
[319345627,1710686573706,-1000.0,0.00021824,30]
[319345628,1710686573729,-1000.0,0.00021824,30]
[319345629,1710686573752,-1007.23033313,0.00021824,30]
[319345630,1710686573774,-1000.0,0.00021824,30]
[319345631,1710686573797,-1000.0,0.00021824,30]
[319345632,1710686573821,-1000.0,0.00021824,30]
[319345633,1710686573845,-1000.0,0.00021824,30]
[319345634,1710686573869,-1000.0,0.00021824,30]
[319345635,1710686573891,-1012.56579112,0.00021824,30]
[319345636,1710686573916,-1000.0,0.00021824,60]
[319345637,1710686573941,-1000.0,0.00021824,30]
[319345638,1710686573965,-1000.0,0.00021824,60]
[319345639,1710686573990,-1000.0,0.00021824,60]
[319345640,1710686574018,-1813.44057548,0.00021824,120]
[319345641,1710686574045,-1000.0,0.00021824,60]
[319345642,1710686574069,-1000.0,0.00021824,60]
[319345643,1710686574093,-1000.0,0.00021824,30]
[319345644,1710686574115,-1000.0,0.00021824,120]
[319345645,1710686574138,-1000.0,0.00021824,30]
[319345646,1710686574160,-1000.0,0.00021824,60]
[319345647,1710686574183,-1000.0,0.00021824,30]
[319345648,1710686574206,-1000.0,0.00021824,30]
[319345649,1710686574229,-1000.0,0.00021824,60]
[319345650,1710686574252,-1000.0,0.00021824,60]
[319345651,1710686574275,-1000.0,0.00021824,60]
[319345652,1710686574299,-1000.0,0.00021824,120]
[319345653,1710686574323,-1000.0,0.00021824,30]
[319345654,1710686574349,-1000.0,0.00021824,30]
[319345655,1710686574374,-51364.20500893,0.00021824,60]
[319345656,1710686574401,-2975.04563423,0.00021824,120]
[319345657,1710686574429,-150.0,0.00021824,120]
[319345658,1710686574455,-16600.0,0.00021824,120]
[319345659,1710686574481,-34877.43077851,0.00021824,30]
[319345660,1710686574505,-4526.49689061,0.00021824,30]
[319345661,1710686574531,-4917.37254815,0.00021824,30]
[319345662,1710686574554,-5076.27952508,0.00021824,30]
[319345663,1710686574579,-5128.2251103,0.00021824,120]
[319345664,1710686574607,-16196.21248613,0.00021824,30]
[319345665,1710686574631,-18264.01519553,0.00021824,30]
[319345666,1710686574655,-6159.78529452,0.00021824,30]
[319345667,1710686574682,-5496.39044149,0.00021824,30]
[319345668,1710686574707,-1000.0,0.00021824,30]
[319345669,1710686574730,-1000.0,0.00021824,120]
[319345670,1710686574952,-1000.0,0.00021824,30]
[319345671,1710686574976,-1000.0,0.00021824,60]
[319345672,1710686574998,-1000.0,0.00021824,30]
[319345673,1710686575021,-23024.41193723,0.00021824,60]
[319345674,1710686575043,-28590.83302429,0.00021824,30]
[319345675,1710686575065,-121969.91378618,0.00021824,30]
[319345676,1710686575087,-581893.69799622,0.00021824,30]
[319345677,1710686575110,-4268.23003004,0.00021824,30]
[319345678,1710686575131,-16902.05946676,0.00021824,30]
[319345679,1710686575154,-2979.29132282,0.00021824,30]
[319345680,1710686575176,-43500.0,0.00021824,120]
[319345681,1710686575198,-7049.3684559,0.00021824,30]
[319345682,1710686575221,-417.19534398,0.00021824,30]
[319345683,1710686575243,-5304.9691198,0.00021824,30]
[319345684,1710686575264,-217.50457124,0.00021824,30]
[319345685,1710686575286,-1000.0,0.00021824,120]
[319345686,1710686575311,-5000.0,0.00021824,120]
[319345687,1710686575334,-74336.07885109,0.00021824,120]
[319345688,1710686575356,-66000.00333449,0.00021824,99]
[319345689,1710686575379,-100000.0,0.00021824,120]
[319345690,1710686575402,-34645.25744615,0.00021824,120]
[319345691,1710686575424,-116518.63593168,0.00021824,30]
[319345692,1710686575449,-555390.65151071,0.00021824,30]
[319345693,1710686580591,-198859.00604279,0.00021824,30]
[319345694,1710686580615,-74034.62930898,0.00021824,30]
[319345695,1710686580639,-57344.95903826,0.00021824,30]
[319345696,1710686580661,-600.2513557,0.00021824,120]
[319345697,1710686580685,-160.44969069,0.00021824,120]
[319345698,1710686580708,-1326.15068704,0.00021824,120]
[319345699,1710686580731,-23126.25314538,0.00021824,120]
[319345700,1710686580756,-1248582.43888319,0.00021824,120]
[319345701,1710686580778,-635.68027428,0.00021824,120]
[319345702,1710686580800,-11914.09786917,0.00021824,120]
[319345703,1710686580823,-11723.7632429,0.00021824,120]
[319345704,1710686580845,-485.30772579,0.00021824,120]
[319345705,1710686580867,-32737.76535118,0.00021824,120]
[319345706,1710686580889,-101172.77028596,0.00021824,120]
[319345707,1710686580912,-6461.18608369,0.00021824,120]
[319345708,1710686580936,-85045.67159949,0.00021824,120]
[319345709,1710686580958,-172432.7089723,0.00021824,120]
[319345710,1710686580981,-18313.84240414,0.00021824,120]
[319345711,1710686581005,-192.3155136,0.00021824,120]
[319345712,1710686581029,-206.43903736,0.00021824,120]
[319345713,1710686581052,-35676.81064002,0.00021824,120]
[319345714,1710686581075,-53637.46437297,0.00021824,30]
[319345715,1710686581097,-418334.70034009,0.00021824,30]
[319345716,1710686581119,-22893.61297518,0.00021824,120]
[319345717,1710686581142,-3807.18596567,0.00021824,120]
[319345718,1710686581164,-672.48038512,0.00021824,30]
[319345719,1710686581189,-8670.46334085,0.00021824,30]
[319345720,1710686581211,-1389.24506673,0.00021824,60]
[319345721,1710686581232,-82976.50239245,0.00021824,30]
[319345722,1710686581254,-1069.77262807,0.00021824,30]
[319345723,1710686581276,-4353.31602774,0.00021824,120]
[319345724,1710686581297,-22851.04046051,0.00021824,30]
[319345725,1710686581319,-756.0,0.00021824,120]
[319345726,1710686581341,-7130.08116557,0.00021824,120]
[319345727,1710686581364,-2025.72412322,0.00021824,30]
[319345728,1710686581387,-25147.76331862,0.00021824,120]
[319345729,1710686581413,-8063.48031396,0.00021824,30]
[319345730,1710686581435,-2026.0,0.00021824,120]
[319345731,1710686581458,-193.52807095,0.00021824,120]
[319345732,1710686581482,-100000.0,0.00021824,60]
[319345733,1710686581504,-100000.0,0.00021824,60]
[319345734,1710686581528,-52969.14190039,0.00021824,120]
[319345735,1710686584287,-31016.56251652,0.00021824,120]
[319345736,1710686584310,-19210.75512283,0.00021824,30]
[319345737,1710686584333,-10474.19425215,0.00021824,120]
[319345738,1710686584355,-272.02044453,0.00021824,60]
[319345739,1710686584378,-210.09977454,0.00021824,30]
[319345740,1710686584401,-63185.21868637,0.00021824,120]
[319345741,1710686584427,-331.0,0.00021824,120]
[319345742,1710686584453,-8000.0,0.00021824,90]
[319345743,1710686584476,-29269.29619973,0.00021824,30]
[319345744,1710686584500,-104400.0,0.00021824,120]
[319345745,1710686584523,-120000.0,0.00021824,30]
[319345746,1710686584546,-499.99999884,0.00021824,30]
[319345747,1710686584569,-7399.999999,0.00021824,30]
[319345748,1710686584593,-20000.0,0.00021824,120]
[319345749,1710686584616,-8069.01513925,0.00021824,68]
[319345750,1710686584639,-1453.42987069,0.00021824,30]
[319345751,1710686584823,-34519.7674339,0.00021824,30]
[319345752,1710686584846,-4165.0,0.00021824,120]
[319345753,1710686584868,-1000.0,0.00021824,30]
[319345754,1710686584889,-1000.0,0.00021824,30]
[319345755,1710686584913,-1000.0,0.00021824,30]
[319345756,1710686584938,-1000.0,0.00021824,30]
[319345757,1710686584960,-1000.0,0.00021824,30]
[319345758,1710686584982,-1000.0,0.00021824,30]
[319345759,1710686585003,-1000.0,0.00021824,30]
[319345760,1710686585027,-1000.0,0.00021824,30]
[319345761,1710686585049,-1000.0,0.00021824,30]
[319345762,1710686585073,-1000.0,0.00021824,30]
[319345763,1710686585101,-1000.0,0.00021824,30]
[319345764,1710686585124,-1000.0,0.00021824,30]
[319345765,1710686585147,-1000.0,0.00021824,30]
[319345766,1710686585170,-1000.0,0.00021824,30]
[319345767,1710686585195,-1000.0,0.00021824,30]
[319345768,1710686585219,-1000.0,0.00021824,30]
[319345769,1710686585243,-1000.0,0.00021824,30]
[319345770,1710686585266,-1000.0,0.00021824,30]
[319345771,1710686585290,-1000.0,0.00021824,30]
[319345772,1710686585313,-1000.0,0.00021824,30]
[319345773,1710686585336,-1000.0,0.00021824,30]
[319345774,1710686585359,-593.64642629,0.00021824,30]
[319345775,1710686585383,-100000.0,0.00021824,30]
[319345776,1710686585414,-100000.0,0.00021824,30]
[319345777,1710686585439,-32671.05,0.00021824,30]
[319345778,1710686585462,-150.0,0.00021824,30]
[319345779,1710686585486,-236.36,0.00021824,30]
[319345780,1710686585508,-906.97,0.00021824,30]
[319345781,1710686585532,-71648.45265904,0.00021824,120]
[319345782,1710686585555,-50395.97928169,0.00021824,120]
[319345783,1710686585579,-1000.0,0.00021824,120]
[319345784,1710686585604,-781.0,0.00021824,120]
[319345785,1710686585627,-3000.0,0.00021824,120]
[319345786,1710686585649,-5000.0,0.00021824,120]
[319345787,1710686585673,-5000.0,0.00021824,120]
[319345788,1710686585699,-5000.0,0.00021824,120]
[319345789,1710686585723,-5000.0,0.00021824,120]
[319345790,1710686585747,-179.04946554,0.00021824,30]
[319345791,1710686585771,-14698.0779047,0.00021824,120]
[319345792,1710686585797,-208.59778219,0.00021824,120]
[319345793,1710686585821,-265500.0,0.00021824,60]
[319345794,1710686585844,-21092.05581424,0.00021824,30]
[319345795,1710686585866,-139096.36034559,0.00021824,30]
[319345796,1710686585888,-195474.09065427,0.00021824,120]
[319345797,1710686585912,-56588.16168144,0.00021824,120]
[319345798,1710686585938,-1270.290039,0.00021824,30]
[319345799,1710686585961,-200.0,0.00021824,30]
[319345800,1710686585982,-389.336264,0.00021824,30]
[319345801,1710686586004,-735.272938,0.00021824,30]
[319345802,1710686608485,-4413.06411,0.0002208,30]
[319345803,1710686608518,-1000.0,0.00022984,30]
[319345804,1710686608542,-41728.46627365,0.00023,30]
[319345805,1710686608570,-201.67065339,0.000239,33]
[319345806,1710686608601,-1000.0,0.00023984,31]
[319345807,1710686608624,-530.58325801,0.00024,30]
[319345808,1710686608650,-19994.378219,0.000242,30]
[319345809,1710686608674,-1400.32453439,0.000242,30]
[319345810,1710686608696,-500.0,0.000242,30]
[319345811,1710686608722,-639.60194589,0.000242,30]
[319345812,1710686608751,-20000.0,0.000247,31]
[319345813,1710686608778,-432.5,0.00024939,120]
[319345814,1710686608801,-2176.00162221,0.00025,30]
[319345815,1710686608826,-11485.00697188,0.00025,30]
[319345816,1710686608850,-2558.66821381,0.00025,30]
[319345817,1710686608875,-33700.0,0.00025,30]
[319345818,1710686608898,-101576.19164503,0.00025,30]
[319345819,1710686608921,-1150.0,0.00025,120]
[319345820,1710686608945,-5743.87358302,0.00025,30]
[319345821,1710686608970,-200.0,0.00025,120]
[319345822,1710686608994,-400.0,0.00025,120]
[319345823,1710686609020,-10000.0,0.000257,30]
[319345824,1710686609048,-286.73,0.00025939,120]
[319345825,1710686609071,-189.0,0.00026,120]
[319345826,1710686609099,-202.73,0.0002611,120]
[319345827,1710686609122,-500.0,0.0002628,90]
[319345828,1710686609148,-155.66,0.00026579,120]
[319345829,1710686609173,-432.5,0.00027206,120]
[319345830,1710686609197,-103963.35263297,0.0002736,120]
[319345831,1710686609220,-510.0,0.00027397,120]
[319345832,1710686609243,-554.89061024,0.00027397,30]
[319345833,1710686609267,-680.52216483,0.00027397,30]
[319345834,1710686609289,-3999.999999,0.00027397,30]
[319345835,1710686609315,-200.0,0.000274,120]
[319345836,1710686609338,-150.0,0.000275,120]
[319345837,1710686609361,-510.0,0.00027671,120]
[319345838,1710686609388,-510.0,0.00027945,120]
[319345839,1710686609411,-500.0,0.00028,120]
[319345840,1710686609435,-510.0,0.00028219,120]
[319345841,1710686609460,-10000.0,0.000284,30]
[319345842,1710686609486,-500.0,0.0002847,120]
[319345843,1710686609510,-510.0,0.00028493,120]
[319345844,1710686609537,-510.0,0.00028767,120]
[319345845,1710686609561,-102357.30076259,0.00029,120]
[319345846,1710686609585,-32972.03215392,0.00029,30]
[319345847,1710686609609,-600.0,0.00029,30]
[319345848,1710686609632,-376812.66420861,0.00029,120]
[319345849,1710686609656,-510.0,0.00029041,120]
[319345850,1710686609679,-510.0,0.00029315,120]
[319345851,1710686609702,-510.0,0.00029589,120]
[319345852,1710686609729,-60049.95273703,0.000297,30]
[319345853,1710686609750,-1582.23394792,0.00029784,30]
[319345854,1710686609773,-1540.70299882,0.00029824,120]
[319345855,1710686609795,-3000.0,0.00029824,60]
[319345856,1710686609817,-510.0,0.00029863,120]
[319345857,1710686609841,-200000.0,0.0003,30]
[319345858,1710686609866,-1000.0,0.0003,120]
[319345859,1710686609889,-20579.26019256,0.0003,30]
[319345860,1710686609913,-25000.0,0.0003,30]
[319345861,1710686609936,-9591.43221513,0.0003,30]
[319345862,1710686609961,-240.0,0.0003,120]
[319345863,1710686609986,-600.0,0.0003,31]
[319345864,1710686610017,-190664.11964762,0.0003,30]
[319345865,1710686610041,-50000.0,0.0003,30]
[319345866,1710686610065,-200.0,0.0003,120]
[319345867,1710686610088,-1800.0,0.0003,31]
[319345868,1710686610110,-201.44446561,0.0003,30]
[319345869,1710686610133,-14000.0,0.0003,60]
[319345870,1710686610164,-510.0,0.00030136,120]
[319345871,1710686610188,-510.0,0.0003041,120]
[319345872,1710686610214,-130264.11045365,0.000305,30]
[319345873,1710686610239,-510.0,0.00030684,120]
[319345874,1710686610263,-250.0,0.000308,30]
[319345875,1710686610288,-510.0,0.00030958,120]
[319345876,1710686610312,-200000.0,0.00031,31]
[319345877,1710686610337,-1000.0,0.00031,120]
[319345878,1710686610362,-500.0,0.00031,30]
[319345879,1710686610386,-500.0,0.00031,30]
[319345880,1710686610412,-500.0,0.00031,30]
[319345881,1710686610435,-600.0,0.00031,32]
[319345882,1710686610462,-500.0,0.00031,30]
[319345883,1710686610485,-10000.0,0.000311,30]
[319345884,1710686610511,-200.0,0.000312,120]
[319345885,1710686610534,-510.0,0.00031232,120]
[319345886,1710686610558,-510.0,0.00031506,120]
[319345887,1710686610584,-3400.0,0.000316,60]
[319345888,1710686610606,-170.14,0.00031644,91]
[319345889,1710686610629,-245.01645486,0.00031689,30]
[319345890,1710686610655,-510.0,0.0003178,120]
[319345891,1710686610850,-293973.38834172,0.00031888,60]
[319345892,1710686610875,-561939.44900484,0.00031888,60]
[319345893,1710686610907,-200000.0,0.00032,32]
[319345894,1710686610931,-30000.0,0.00032,30]
[319345895,1710686610955,-600.0,0.00032,33]
[319345896,1710686610977,-1000.0,0.00032,120]
[319345897,1710686611000,-500.0,0.00032,120]
[319345898,1710686611022,-41998.24499762,0.00032,120]
[319345899,1710686611044,-37252.79098018,0.00032,30]
[319345900,1710686616889,-16994.19447274,0.00032,30]
[319345901,1710686616913,-2897.0,0.00032,30]
[319345902,1710686616938,-365.34489848,0.00032054,120]
[319345903,1710686616961,-1250.18407297,0.000322,30]
[319345904,1710686616985,-4309.00555,0.000322,30]
[319345905,1710686617008,-20352.73970352,0.000322,30]
[319345906,1710686617038,-3893.38931401,0.000322,30]
[319345907,1710686617059,-6859.17564985,0.000322,30]
[319345908,1710686617081,-1098.40992953,0.000322,30]
[319345909,1710686617102,-2288.41090681,0.000322,30]
[319345910,1710686617125,-1584.62197492,0.000322,30]
[319345911,1710686617150,-3921.58986127,0.000322,30]
[319345912,1710686617172,-349.59,0.000322,30]
[319345913,1710686617194,-25000.0,0.000322,30]
[319345914,1710686617219,-25000.0,0.000322,30]
[319345915,1710686617240,-25000.0,0.000322,30]
[319345916,1710686617262,-25000.0,0.000322,30]
[319345917,1710686617284,-25000.0,0.000322,30]
[319345918,1710686617306,-682.1203744,0.000322,30]
[319345919,1710686617329,-4400.78305604,0.000322,30]
[319345920,1710686617355,-3506.21907765,0.000322,30]
[319345921,1710686617378,-313.86665217,0.000322,30]
[319345922,1710686617402,-1321.0,0.000322,30]
[319345923,1710686617427,-1187.66039388,0.000322,30]
[319345924,1710686617451,-2853.15471247,0.000322,30]
[319345925,1710686617476,-1054.75448432,0.000322,30]
[319345926,1710686617501,-3431.98873645,0.000322,30]
[319345927,1710686617525,-670.705,0.000322,30]
[319345928,1710686617549,-16145.86362331,0.000322,30]
[319345929,1710686617574,-9037.04946336,0.000322,30]
[319345930,1710686617597,-255.59914172,0.000322,30]
[319345931,1710686617620,-2802.012271,0.000322,30]
[319345932,1710686617643,-1385.12037432,0.000322,30]
[319345933,1710686617668,-15436.20175085,0.000322,30]
[319345934,1710686617691,-13440.8798654,0.000325,120]
[319345935,1710686617718,-150.0,0.000325,120]
[319345936,1710686617745,-1250.0,0.0003264,30]
[319345937,1710686617768,-1250.0,0.0003264,79]
[319345938,1710686617790,-1250.0,0.0003264,80]
[319345939,1710686617812,-1250.0,0.0003264,81]
[319345940,1710686617835,-1250.0,0.0003264,82]
[319345941,1710686617859,-1250.0,0.0003264,83]
[319345942,1710686617882,-1250.0,0.0003264,84]
[319345943,1710686617904,-1250.0,0.0003264,85]
[319345944,1710686617930,-1250.0,0.0003264,86]
[319345945,1710686617955,-1250.0,0.0003264,87]
[319345946,1710686617979,-1250.0,0.0003264,88]
[319345947,1710686618002,-1250.0,0.0003264,89]
[319345948,1710686618025,-1250.0,0.0003264,90]
[319345949,1710686618048,-1250.0,0.0003264,91]
[319345950,1710686618072,-1250.0,0.0003264,92]
[319345951,1710686618094,-1250.0,0.0003264,93]
[319345952,1710686618117,-1250.0,0.0003264,94]
[319345953,1710686618139,-1250.0,0.0003264,95]
[319345954,1710686618161,-1250.0,0.0003264,96]
[319345955,1710686618184,-1250.0,0.0003264,97]
[319345956,1710686618208,-1250.0,0.0003264,98]
[319345957,1710686618233,-1250.0,0.0003264,99]
[319345958,1710686618260,-1250.0,0.0003264,100]
[319345959,1710686618285,-1250.0,0.0003264,101]
[319345960,1710686618308,-1250.0,0.0003264,102]
[319345961,1710686618331,-1250.0,0.0003264,103]
[319345962,1710686618355,-1250.0,0.0003264,104]
[319345963,1710686618381,-1250.0,0.0003264,105]